bitfinex-derivatives/quotes_SOLF0:USTF0_20250625
["timestamp","ask_amount","ask_price","bid_price","bid_amount"]
[1750864467914,6.8939,144.98,144.94,8.55462605]
[1750864468109,6.8939,144.98,144.95,6.8947]
[1750864470218,11.25190881,144.98,144.95,6.8947]
[1750864470419,11.25190881,144.98,144.96,6.8945]
[1750864471716,11.25190881,144.98,144.95,6.8949]
[1750864472114,6.8943,144.97,144.95,6.8949]
[1750864472513,4.35800881,144.98,144.97,6.8942]
[1750864472719,4.35800881,145.0,144.97,6.8942]
[1750864473217,6.8935,144.99,144.97,6.8942]
[1750864473516,4.35800881,145.0,144.97,6.8942]
[1750864473711,4.35800881,145.01,144.99,6.8932]
[1750864473915,4.35800881,145.01,144.96,8.55462605]
[1750864474213,11.25030881,145.01,144.99,6.8929]
[1750864474419,4.35800881,145.01,144.99,6.8929]
[1750864474817,11.25050881,145.01,144.99,6.8929]
[1750864475621,11.25050881,145.01,144.97,8.55462605]
[1750864475826,39.8,145.03,144.97,8.55462605]
[1750864476015,44.15800881,145.03,144.97,8.55462605]
[1750864476519,6.892,145.02,144.97,8.55462605]
[1750864477325,51.04950881,145.03,145.0,6.8925]
[1750864477523,44.15800881,145.03,145.0,6.8925]
[1750864477925,6.892,145.02,145.0,6.8925]
[1750864478125,6.892,145.02,144.97,8.55462605]
[1750864478126,44.15800881,145.03,144.97,8.55462605]
[1750864478617,44.15800881,145.03,145.01,6.892]
[1750864479131,46.6914,145.03,145.01,6.892]
[1750864479432,46.6914,145.03,145.0,6.8924]
[1750864480227,46.6914,145.03,145.01,6.8921]
[1750864481023,46.6914,145.03,145.0,6.8925]
[1750864482428,39.8,145.03,144.98,8.55462605]
[1750864482728,39.8,145.03,144.99,8.55462605]
[1750864482920,39.8,145.03,145.01,6.8918]
[1750864484423,39.8,145.03,145.02,6.8918]
[1750864484630,11.24860881,145.05,145.02,6.8918]
[1750864484827,11.24860881,145.05,145.02,6.8913]
[1750864485028,6.8909,145.04,145.02,6.8913]
[1750864485333,4.35800881,145.03,145.0,8.5671981]
[1750864485529,4.35800881,145.03,145.01,6.892]
[1750864485933,4.35800881,145.03,145.0,8.5671981]
[1750864486127,4.35800881,145.01,145.0,8.5671981]
[1750864486327,11.25030881,145.01,145.0,8.5671981]
[1750864486528,11.25030881,145.01,144.98,15.4605981]
[1750864486829,11.25030881,145.01,144.98,8.5671981]
[1750864487727,6.8916,145.03,144.98,8.5671981]
[1750864487929,39.52,145.06,144.99,8.5671981]
[1750864487930,9.5423396,145.05,144.99,8.5671981]
[1750864488132,4.35800881,145.03,144.98,8.5671981]
[1750864488319,6.8918,145.02,145.0,6.8927]
[1750864488928,6.8918,145.02,144.99,6.893]
[1750864489132,11.25040881,145.01,144.98,8.5671981]
[1750864489934,11.25040881,145.01,144.98,15.4605981]
[1750864490135,4.35800881,144.99,144.96,13.0286981]
[1750864490435,4.35800881,145.01,144.96,13.0286981]
[1750864490634,6.8915,145.03,144.98,8.5671981]
[1750864491224,6.8918,145.02,145.0,6.8925]
[1750864491732,43.87800881,145.05,144.98,8.5671981]
[1750864491733,4.35800881,145.03,144.98,8.5671981]
[1750864491937,6.8923,145.01,144.99,6.893]
[1750864492132,4.35800881,145.03,144.98,8.5671981]
[1750864492533,6.8926,145.01,144.99,6.8932]
[1750864493232,6.8921,145.02,144.99,6.8932]
[1750864493433,4.35800881,145.03,144.99,6.8932]
[1750864494739,6.8925,145.01,144.98,15.4605981]
[1750864494935,4.35800881,145.03,144.98,15.4605981]
[1750864495236,6.892,145.02,144.99,6.893]
[1750864495423,6.892,145.02,144.99,15.4601981]
[1750864495628,4.35800881,145.03,144.99,15.4601981]
[1750864495828,6.8924,145.01,144.99,15.4601981]
[1750864496841,4.35800881,145.03,144.99,8.5671981]
[1750864497144,5.21801166,145.02,144.98,15.4605981]
[1750864497437,4.35800881,145.03,144.99,6.8931]
[1750864497438,6.8926,145.01,144.99,6.8931]
[1750864498439,6.8918,145.03,144.99,8.5671981]
[1750864498736,43.87800881,145.05,145.0,8.5671981]
[1750864498947,5.21641819,145.04,145.0,8.5671981]
[1750864499239,39.52,145.05,145.01,8.5671981]
[1750864499535,4.35800881,145.03,145.01,8.5671981]
[1750864499742,4.35800881,145.03,144.99,8.5671981]
[1750864500237,6.8923,145.01,144.99,8.5671981]
[1750864500438,4.35800881,145.03,144.99,8.5671981]
[1750864500634,43.87800881,145.05,145.0,8.5671981]
[1750864500939,5.20152601,145.04,145.0,8.5671981]
[1750864501144,43.87800881,145.05,145.0,8.5671981]
[1750864501333,12.09376394,145.04,145.01,6.892]
[1750864501533,6.8912,145.04,145.01,15.4591981]
[1750864501832,6.8912,145.04,145.01,8.5671981]
[1750864502735,6.8912,145.04,145.02,6.8917]
[1750864502938,4.35800881,145.07,145.03,8.5671981]
[1750864503232,5.20116108,145.06,145.03,8.5671981]
[1750864503438,6.8905,145.05,145.03,8.5671981]
[1750864503640,6.8905,145.05,145.02,10.8778981]
[1750864503835,4.35800881,145.05,145.02,10.8778981]
[1750864504036,4.35800881,145.03,145.02,8.5671981]
[1750864504431,4.35800881,145.03,145.01,8.5671981]
[1750864504828,4.35800881,145.03,145.01,15.4592981]
[1750864505038,11.24950881,145.03,145.01,15.4592981]
[1750864505238,6.8915,145.03,145.01,15.4592981]
[1750864505834,4.35800881,145.04,145.0,15.4597981]
[1750864506033,4.49758146,145.07,145.01,8.5671981]
[1750864506241,11.24930881,145.04,145.01,15.4591981]
[1750864506540,4.35800881,145.04,145.0,8.5671981]
[1750864506736,4.49787333,145.06,145.0,8.5671981]
[1750864506927,11.24920881,145.04,145.0,8.5671981]
[1750864507336,11.24920881,145.04,145.01,8.5671981]
[1750864507639,6.8918,145.02,145.01,8.5671981]
[1750864507844,9.55849335,145.02,144.95,12.83193908]
[1750864508141,9.55849335,145.01,144.95,12.83193908]
[1750864508343,6.8935,144.99,144.96,6.8945]
[1750864508533,11.25150881,144.99,144.96,6.8945]
[1750864508737,11.25150881,144.99,144.94,12.83193908]
[1750864509332,11.25150881,144.99,144.95,12.83193908]
[1750864509539,6.8935,144.99,144.95,12.83193908]
[1750864509934,6.8935,144.99,144.96,6.8945]
[1750864510135,6.8939,144.98,144.96,6.8945]
[1750864510435,4.35800881,144.97,144.94,6.8952]
[1750864510638,4.35800881,144.97,144.93,12.83193908]
[1750864510838,4.35800881,144.95,144.92,19.94693908]
[1750864511041,4.35800881,144.95,144.93,6.8958]
[1750864511242,4.35800881,144.95,144.92,7.115]
[1750864511447,4.35800881,144.95,144.92,9.2895]
[1750864511647,4.35800881,144.95,144.92,2.3932]
[1750864511840,11.25340881,144.95,144.92,2.3932]
[1750864512040,4.35800881,144.95,144.92,2.3932]
[1750864512538,11.25330881,144.95,144.92,2.3932]
[1750864513340,11.25330881,144.95,144.92,9.2895]
[1750864513341,6.8956,144.94,144.92,9.2895]
[1750864513540,4.35800881,144.95,144.92,9.2895]
[1750864513747,4.35800881,144.95,144.92,2.3932]
[1750864513953,4.35800881,144.95,144.91,6.8968]
[1750864514249,4.35800881,144.93,144.88,12.83193908]
[1750864514453,4.35800881,144.91,144.87,41.7103]
[1750864514643,4.35800881,144.93,144.87,54.54223908]
[1750864515249,6.8966,144.92,144.89,6.8977]
[1750864515450,4.35800881,144.93,144.89,6.8977]
[1750864515750,11.25430881,144.93,144.87,41.7103]
[1750864516455,4.35800881,144.93,144.87,41.7103]
[1750864516650,4.35800881,144.95,144.87,54.54223908]
[1750864516951,4.35800881,144.95,144.91,6.8965]
[1750864517851,6.8956,144.94,144.91,6.8965]
[1750864518243,4.35800881,144.93,144.87,2.4503]
[1750864518445,11.25330881,144.95,144.87,6.80830881]
[1750864518651,39.26,144.96,144.87,6.80830881]
[1750864518652,4.35800881,144.93,144.87,2.4503]
[1750864519446,4.35800881,144.95,144.88,4.35800881]
[1750864519848,4.35800881,144.93,144.87,2.4503]
[1750864520048,11.25530881,144.91,144.87,2.4503]
[1750864520249,4.35800881,144.91,144.87,9.3489]
[1750864520448,4.35800881,144.91,144.87,2.4503]
[1750864520649,11.25520881,144.91,144.87,2.4503]
[1750864520952,4.35800881,144.91,144.87,2.4503]
[1750864521256,6.8976,144.9,144.87,2.4503]
[1750864521554,4.35800881,144.91,144.87,2.4503]
[1750864521755,6.898,144.89,144.87,2.4503]
[1750864522752,11.25600881,144.89,144.86,6.899]
[1750864523150,6.8986,144.88,144.85,11.6386]
[1750864523356,4.35800881,144.89,144.85,4.739]
[1750864523745,11.25610881,144.89,144.86,6.8993]
[1750864523951,4.35800881,144.89,144.85,4.739]
[1750864525057,11.25630881,144.89,144.86,6.8991]
[1750864525257,4.35800881,144.89,144.86,6.8991]
[1750864525459,4.35800881,144.89,144.85,4.739]
[1750864525757,4.35800881,144.87,144.83,2.2346]
[1750864526153,39.28,144.88,144.83,2.2346]
[1750864526154,4.35800881,144.85,144.83,9.1353]
[1750864526350,4.35800881,144.85,144.83,2.2346]
[1750864526948,4.35800881,144.87,144.84,6.9003]
[1750864527153,4.35800881,144.87,144.83,2.2346]
[1750864527746,11.25790881,144.85,144.83,2.2346]
[1750864528155,4.35800881,144.85,144.81,2.3627]
[1750864528661,4.35800881,144.85,144.82,6.901]
[1750864528861,4.35800881,144.83,144.79,41.5768]
[1750864529055,4.35800881,144.81,144.76,2.3839]
[1750864529261,4.35800881,144.78,144.76,2.3839]
[1750864529963,43.63800881,144.81,144.76,2.3839]
[1750864530152,6.9028,144.79,144.76,2.3839]
[1750864530462,43.63800881,144.81,144.76,2.3839]
[1750864531058,6.9024,144.8,144.77,6.9033]
[1750864531256,43.63800881,144.81,144.76,2.3839]
[1750864531555,50.55900881,144.83,144.8,6.902]
[1750864531756,11.25900881,144.83,144.76,4.6808]
[1750864531954,4.35800881,144.83,144.76,4.6808]
[1750864532157,6.9013,144.82,144.76,4.6808]
[1750864532355,4.35800881,144.83,144.76,4.6808]
[1750864533055,11.25900881,144.83,144.8,6.9022]
[1750864533656,6.9013,144.82,144.79,6.9026]
[1750864533863,6.9013,144.82,144.76,4.6808]
[1750864533864,4.35800881,144.81,144.76,2.3839]
[1750864534052,4.35800881,144.79,144.74,5.6631612]
[1750864534254,4.35800881,144.77,144.74,5.6631612]
[1750864534466,43.65800881,144.77,144.74,5.6631612]
[1750864534660,6.9043,144.76,144.74,5.6631612]
[1750864535167,11.26260881,144.75,144.74,5.6631612]
[1750864535461,6.9046,144.75,144.74,5.6631612]
[1750864535666,11.25800881,144.75,144.62,39.3]
[1750864535852,39.3,144.77,144.64,7.2107]
[1750864535853,4.35800881,144.69,144.64,7.2107]
[1750864536253,4.35800881,144.69,144.66,6.9086]
[1750864536569,4.35800881,144.69,144.64,7.2107]
[1750864536958,4.35800881,144.67,144.59,470.58057064]
[1750864537266,43.43800881,144.67,144.61,2.4018]
[1750864537456,50.34660881,144.67,144.61,2.4018]
[1750864537656,43.43800881,144.67,144.61,2.4018]
[1750864537971,39.08,144.67,144.52,8.4633161]
[1750864538261,7.29812756,144.65,144.55,4.6428]
[1750864538566,46.37812756,144.65,144.55,11.94092756]
[1750864539158,39.08,144.65,144.55,4.6428]
[1750864539362,14.20972756,144.61,144.57,6.9128]
[1750864539671,46.37812756,144.61,144.55,2.3027]
[1750864540461,7.29812756,144.59,144.55,2.3027]
[1750864540862,39.08,144.61,144.55,2.3027]
[1750864541168,14.21002756,144.6,144.56,6.9134]
[1750864541371,53.31002756,144.6,144.56,6.9134]
[1750864541565,46.39812756,144.6,144.55,2.3027]
[1750864541782,7.29812756,144.56,144.5,62.0]
[1750864542066,7.29812756,144.54,144.46,4.6096]
[1750864542262,46.39812756,144.54,144.46,4.6096]
[1750864542471,7.29812756,144.52,144.46,4.6096]
[1750864542661,7.29812756,144.53,144.46,4.6096]
[1750864542864,7.29812756,144.51,144.46,4.6096]
[1750864543166,39.1,144.51,144.39,355.96914674]
[1750864543360,7.29812756,144.49,144.41,6.9844]
[1750864543856,39.1,144.51,144.41,6.9844]
[1750864544060,0.769,144.59,144.41,6.9844]
[1750864544061,7.29812756,144.55,144.46,39.12]
[1750864544258,7.29812756,144.53,144.46,39.12]
[1750864544564,7.29812756,144.51,144.43,39.12]
[1750864544966,7.29812756,144.51,144.44,62.0]
[1750864545367,46.41812756,144.53,144.44,62.0]
[1750864546067,39.12,144.53,144.47,39.12]
[1750864546255,39.12,144.53,144.49,4.6759]
[1750864546461,39.12,144.53,144.5,6.9161]
[1750864546764,39.12,144.53,144.49,4.6759]
[1750864547664,7.29812756,144.52,144.49,4.6759]
[1750864547876,7.29812756,144.52,144.48,5.6631612]
[1750864548061,39.12,144.53,144.48,5.6631612]
[1750864548261,7.29812756,144.52,144.48,5.6631612]
[1750864549162,14.21372756,144.52,144.48,12.5803612]
[1750864549365,7.29812756,144.52,144.48,5.6631612]
[1750864549572,7.29812756,144.5,144.48,5.6631612]
[1750864549866,7.29812756,144.45,144.38,4.7111]
[1750864550366,14.21712756,144.45,144.38,4.7111]
[1750864550574,7.29812756,144.43,144.38,4.7111]
[1750864550769,7.29812756,144.43,144.33,1.20502787]
[1750864550970,7.29812756,144.4,144.34,4.9045]
[1750864551266,7.29812756,144.4,144.37,6.9226]
[1750864551472,46.061,144.41,144.28,186.81746448]
[1750864551473,7.29812756,144.38,144.28,186.81746448]
[1750864551662,7.29812756,144.41,144.28,186.81746448]
[1750864551866,7.29812756,144.41,144.32,7.29812756]
[1750864552070,7.29812756,144.41,144.33,46.3184]
[1750864552372,7.29812756,144.35,144.24,5.6631612]
[1750864552672,7.29812756,144.4,144.24,5.6631612]
[1750864552673,7.29812756,144.31,144.24,5.6631612]
[1750864552870,7.29812756,144.29,144.24,5.6631612]
[1750864553283,7.29812756,144.25,144.24,5.6631612]
[1750864554175,7.29812756,144.25,144.21,2.0]
[1750864554381,11.24838277,144.22,144.21,2.0]
[1750864554892,50.40838277,144.24,144.21,2.0]
[1750864555092,11.24490844,144.27,144.21,2.0]
[1750864555389,647.22,144.35,144.21,41.18]
[1750864555589,18.17000844,144.33,144.22,73.24490844]
[1750864555782,39.18,144.34,144.22,73.24490844]
[1750864555783,11.24490844,144.34,144.22,73.24490844]
[1750864555987,39.18,144.34,144.22,62.0]
[1750864556377,11.22964862,144.32,144.22,62.0]
[1750864556577,6.9253,144.32,144.27,6.9275]
[1750864556788,39.18,144.34,144.21,2.0]
[1750864556789,11.22964862,144.29,144.21,2.0]
[1750864556987,11.22964862,144.26,144.21,2.0]
[1750864557189,11.22964862,144.23,144.21,2.0]
[1750864557692,39.18,144.24,144.21,2.0]
[1750864557989,39.18,144.26,144.21,2.0]
[1750864558183,39.2,144.29,144.21,2.0]
[1750864558378,647.22,144.35,144.21,13.22964862]
[1750864558582,647.22,144.35,144.24,11.22964862]
[1750864558583,697.64964862,144.35,144.24,11.22964862]
[1750864558885,697.64964862,144.35,144.24,50.42964862]
[1750864559089,697.64964862,144.35,144.24,39.2]
[1750864559279,50.42964862,144.35,144.24,39.2]
[1750864559479,0.7757,144.41,144.26,11.22964862]
[1750864559687,11.22964862,144.38,144.26,11.22964862]
[1750864559888,11.22964862,144.38,144.27,62.0]
[1750864560486,11.22964862,144.35,144.24,39.2]
[1750864560686,6.9251,144.33,144.27,6.9276]
[1750864560985,39.2,144.34,144.24,39.2]
[1750864560986,11.22964862,144.32,144.24,39.2]
[1750864561495,11.22964862,144.33,144.24,39.2]
[1750864561684,39.2,144.34,144.24,39.2]
[1750864561887,6.9255,144.32,144.27,6.9273]
[1750864562093,6.9255,144.32,144.24,39.2]
[1750864562288,11.22964862,144.33,144.24,39.2]
[1750864562789,39.2,144.34,144.25,11.22964862]
[1750864562994,6.9248,144.33,144.28,6.9268]
[1750864563195,39.2,144.34,144.24,50.42964862]
[1750864563399,39.2,144.34,144.25,62.0]
[1750864563598,46.1246,144.34,144.29,6.9263]
[1750864563898,39.2,144.34,144.28,39.2]
[1750864564195,39.2,144.34,144.31,6.9253]
[1750864564489,39.2,144.37,144.25,101.2]
[1750864564692,39.2,144.37,144.27,6.9273]
[1750864564693,11.22964862,144.35,144.27,6.9273]
[1750864564881,11.23269012,144.33,144.25,101.2]
[1750864565084,6.926,144.31,144.27,6.9274]
[1750864565292,50.43269012,144.33,144.25,39.2]
[1750864565888,6.9255,144.32,144.25,39.2]
[1750864566391,50.43269012,144.33,144.25,39.2]
[1750864566694,6.926,144.31,144.27,6.9272]
[1750864566891,50.43269012,144.33,144.25,39.2]
[1750864567687,57.35759012,144.33,144.25,39.2]
[1750864567993,40.0,144.34,144.25,39.2]
[1750864568191,46.9238,144.35,144.28,6.9271]
[1750864568396,40.0,144.35,144.29,64.2634]
[1750864568581,40.0,144.35,144.29,2.2634]
[1750864568788,18.15289322,144.33,144.29,9.19]
[1750864568980,11.22779322,144.33,144.22,2.4324]
[1750864569293,6.926,144.31,144.24,2.3417]
[1750864569494,51.22779322,144.31,144.24,2.3417]
[1750864569992,58.15349322,144.31,144.27,6.9273]
[1750864570192,58.15349322,144.31,144.24,2.3417]
[1750864570590,6.9262,144.3,144.24,2.3417]
[1750864571095,51.22779322,144.31,144.28,6.9271]
[1750864571293,51.22779322,144.31,144.24,2.3417]
[1750864571690,51.22779322,144.31,144.24,64.3417]
[1750864571896,6.9264,144.3,144.24,64.3417]
[1750864572088,51.22779322,144.31,144.24,64.3417]
[1750864572288,58.15379322,144.31,144.27,6.9274]
[1750864572490,58.15379322,144.31,144.24,64.3417]
[1750864572687,40.0,144.31,144.24,64.3417]
[1750864572898,6.9252,144.33,144.29,6.9263]
[1750864573196,51.22985409,144.34,144.24,64.3417]
[1750864573382,11.22985409,144.31,144.24,64.3417]
[1750864573587,40.0,144.34,144.24,64.3417]
[1750864573989,6.9249,144.33,144.24,64.3417]
[1750864574492,46.9244,144.34,144.24,64.3417]
[1750864574797,46.9244,144.34,144.25,11.22590864]
[1750864574798,40.0,144.34,144.25,11.22590864]
[1750864574995,40.0,144.34,144.26,40.0]
[1750864575382,51.22590864,144.37,144.33,6.9244]
[1750864575590,58.14880864,144.37,144.26,40.0]
[1750864575794,51.22590864,144.37,144.26,40.0]
[1750864576491,51.22590864,144.4,144.35,6.9234]
[1750864576691,11.22590864,144.37,144.31,40.0]
[1750864576998,11.22590864,144.37,144.29,44.8703]
[1750864577196,18.14890864,144.37,144.33,6.9244]
[1750864577389,11.22590864,144.37,144.33,6.9244]
[1750864578098,11.22590864,144.38,144.33,6.9244]
[1750864578298,11.22590864,144.38,144.34,6.9242]
[1750864578495,11.22590864,144.38,144.29,44.8703]
[1750864578797,6.9238,144.35,144.29,44.8703]
[1750864578995,11.22590864,144.38,144.29,44.8703]
[1750864579390,11.22590864,144.38,144.34,6.9238]
[1750864579990,51.22590864,144.4,144.29,44.8703]
[1750864580493,51.22590864,144.4,144.37,6.9224]
[1750864580902,58.14750864,144.4,144.37,6.9224]
[1750864581198,51.22590864,144.4,144.29,44.8703]
[1750864581401,6.9229,144.37,144.29,44.8703]
[1750864581596,40.0,144.4,144.35,6.9235]
[1750864581797,11.22590864,144.39,144.29,44.8703]
[1750864581998,6.9229,144.37,144.29,44.8703]
[1750864582399,11.22590864,144.39,144.29,44.8703]
[1750864582703,10.62591009,144.39,144.29,44.8703]
[1750864583099,6.9226,144.38,144.29,44.8703]
[1750864583301,10.62591009,144.39,144.3,62.0]
[1750864583598,10.62591009,144.39,144.31,2.4721]
[1750864583796,40.0,144.4,144.31,2.4721]
[1750864584692,40.0,144.4,144.31,13.68880543]
[1750864584900,6.9206,144.42,144.31,13.68880543]
[1750864585100,46.9206,144.42,144.31,13.68880543]
[1750864585302,6.921,144.41,144.38,6.9221]
[1750864585499,40.0,144.42,144.33,40.0]
[1750864586000,46.9207,144.42,144.33,40.0]
[1750864586205,40.0,144.42,144.33,40.0]
[1750864586695,40.0,144.42,144.34,62.0]
[1750864587198,46.9207,144.42,144.39,6.9218]
[1750864587396,40.0,144.42,144.34,62.0]
[1750864588300,648.0,144.51,144.36,7.31914858]
[1750864588510,47.31914858,144.5,144.4,7.31914858]
[1750864588708,40.0,144.5,144.41,42.2821]
[1750864588897,6.9174,144.49,144.41,42.2821]
[1750864589401,7.31914858,144.48,144.44,6.9192]
[1750864589598,7.31914858,144.48,144.41,42.2821]
[1750864589793,14.23684858,144.48,144.44,6.9191]
[1750864590103,47.31914858,144.5,144.41,42.2821]
[1750864590299,40.0,144.5,144.41,42.2821]
[1750864590501,648.0,144.51,144.41,42.2821]
[1750864590705,40.0,144.5,144.41,42.2821]
[1750864590908,6.9178,144.48,144.45,6.9189]
[1750864591303,40.0,144.5,144.41,42.2821]
[1750864591611,11.20358362,144.46,144.41,2.2821]
[1750864591913,51.18358362,144.46,144.4,6.9211]
[1750864592407,6.9183,144.47,144.38,46.31773766]
[1750864592605,6.9183,144.47,144.39,6.33773766]
[1750864593209,6.9183,144.47,144.44,6.9192]
[1750864593712,6.9177,144.48,144.45,6.9189]
[1750864593901,39.98,144.49,144.4,6.33773766]
[1750864594099,51.18358362,144.49,144.39,6.33773766]
[1750864594299,6.9189,144.46,144.42,6.9204]
[1750864594501,51.18840222,144.49,144.4,6.33773766]
[1750864594908,51.18840222,144.49,144.38,46.31773766]
[1750864595202,51.18840222,144.49,144.39,6.33773766]
[1750864595403,6.9195,144.44,144.4,6.9212]
[1750864595608,6.9195,144.44,144.38,46.31773766]
[1750864595801,6.9195,144.44,144.38,39.98]
[1750864596006,6.9195,144.44,144.41,6.9208]
[1750864596406,39.98,144.45,144.41,6.9208]
[1750864596999,6.9198,144.44,144.42,6.9203]
[1750864597203,39.98,144.45,144.37,7.2091]
[1750864597616,6.9197,144.44,144.37,7.2091]
[1750864597819,39.98,144.45,144.37,18.42218527]
[1750864598114,47.3979,144.48,144.39,6.33773766]
[1750864598311,40.48,144.48,144.4,62.0]
[1750864598513,40.48,144.48,144.4,73.21308527]
[1750864598713,699.69308527,144.51,144.4,79.55082293]
[1750864599017,699.69308527,144.51,144.41,6.33773766]
[1750864599208,40.48,144.54,144.41,20.17953766]
[1750864599410,11.21308527,144.52,144.42,17.55082293]
[1750864599719,6.9174,144.49,144.45,6.9187]
[1750864599907,40.48,144.5,144.42,40.48]
[1750864600102,40.48,144.5,144.4,149.97773766]
[1750864600103,11.21308527,144.49,144.4,149.97773766]
[1750864600309,11.21308527,144.43,144.39,6.33773766]
[1750864600508,647.7,144.48,144.33,2.2863]
[1750864600509,40.46,144.42,144.33,2.2863]
[1750864600708,40.46,144.41,144.39,6.9218]
[1750864600909,40.46,144.41,144.34,8.74973766]
[1750864601108,40.46,144.41,144.34,49.20973766]
[1750864601416,40.46,144.41,144.37,6.9227]
[1750864601607,40.46,144.41,144.34,49.20973766]
[1750864601807,51.67308527,144.41,144.34,42.872]
[1750864602408,51.67308527,144.41,144.37,6.9226]
[1750864603015,51.67308527,144.41,144.34,49.20973766]
[1750864603714,51.67308527,144.41,144.35,6.33773766]
[1750864604223,40.46,144.41,144.35,6.33773766]
[1750864605217,40.46,144.41,144.38,6.922]
[1750864605810,40.46,144.41,144.39,6.9217]
[1750864606118,40.48,144.44,144.36,6.40752388]
[1750864606422,6.9207,144.42,144.36,6.40752388]
[1750864606620,40.48,144.44,144.36,6.40752388]
[1750864607219,6.9201,144.43,144.4,6.9211]
[1750864608218,47.3997,144.44,144.4,6.9211]
[1750864608413,47.3997,144.44,144.37,6.40752388]
[1750864608927,47.3997,144.44,144.38,6.40752388]
[1750864609121,40.48,144.44,144.38,6.40752388]
[1750864609326,40.48,144.44,144.39,8.74712388]
[1750864609826,40.48,144.47,144.4,2.3117]
[1750864610230,40.48,144.47,144.44,6.9191]
[1750864610525,40.48,144.47,144.4,8.71922388]
[1750864610732,6.9188,144.46,144.43,6.9196]
[1750864611430,47.3981,144.47,144.44,6.9193]
[1750864611730,40.48,144.47,144.4,8.71922388]
[1750864612028,40.48,144.47,144.41,6.40752388]
[1750864612221,40.48,144.47,144.4,8.71922388]
[1750864612530,6.9187,144.46,144.43,6.9196]
[1750864612927,40.48,144.47,144.43,6.9196]
[1750864613531,47.3982,144.47,144.44,6.9194]
[1750864613836,40.48,144.47,144.42,6.40752388]
[1750864614825,40.48,144.47,144.43,6.40752388]
[1750864615019,40.48,144.47,144.46,6.9185]
[1750864615225,47.3966,144.5,144.43,6.40752388]
[1750864615424,47.3966,144.5,144.47,6.9177]
[1750864615620,7.31395513,144.51,144.44,6.40752388]
[1750864615821,7.31395513,144.51,144.45,6.40752388]
[1750864616024,40.46,144.52,144.45,6.40752388]
[1750864616236,7.31395513,144.53,144.45,6.40752388]
[1750864616428,7.31395513,144.54,144.46,8.75082388]
[1750864617030,688.26,144.55,144.46,8.75082388]
[1750864617236,695.57395513,144.55,144.51,6.916]
[1750864617532,695.57395513,144.55,144.47,6.40752388]
[1750864617736,695.57395513,144.55,144.48,6.40752388]
[1750864618241,695.57395513,144.55,144.5,6.9163]
[1750864618824,6.9149,144.54,144.5,6.9163]
[1750864619530,6.9152,144.53,144.5,6.9163]
[1750864620334,7.31395513,144.51,144.47,6.40752388]
[1750864620532,7.31395513,144.49,144.47,6.40752388]
[1750864620934,7.31395513,144.49,144.44,6.40752388]
[1750864621434,6.9178,144.48,144.44,6.40752388]
[1750864621742,7.31395513,144.49,144.46,6.9182]
[1750864621937,7.31395513,144.49,144.44,6.40752388]
[1750864622337,7.31395513,144.48,144.44,6.40752388]
[1750864622542,14.23275513,144.46,144.42,8.68572388]
[1750864622743,40.46,144.47,144.43,6.40752388]
[1750864622941,7.31395513,144.48,144.43,6.40752388]
[1750864622942,47.77395513,144.48,144.43,6.40752388]
[1750864623241,47.77395513,144.48,144.42,8.68572388]
[1750864623444,7.31395513,144.46,144.42,2.2782]
[1750864623642,14.23265513,144.46,144.42,2.2782]
[1750864623843,14.23265513,144.46,144.42,8.68572388]
[1750864624146,14.23265513,144.46,144.43,6.9198]
[1750864624642,7.31395513,144.46,144.42,6.40752388]
[1750864625138,6.9188,144.46,144.43,6.9197]
[1750864625640,47.77395513,144.48,144.42,6.40752388]
[1750864625840,6.9182,144.47,144.44,6.919]
[1750864626044,40.46,144.48,144.42,6.40752388]
[1750864626246,40.46,144.48,144.44,6.40752388]
[1750864626543,40.46,144.48,144.45,6.9187]
[1750864626940,47.3778,144.48,144.45,6.9187]
[1750864627140,47.3778,144.48,144.44,13.32682388]
[1750864627537,47.3778,144.48,144.44,6.40752388]
[1750864627741,40.46,144.48,144.45,6.9186]
[1750864627942,40.46,144.48,144.45,6.40752388]